fUST/lending_fUST_20240817
["ID","MTS","AMOUNT","RATE_DAILY","PERIOD"]
[335158345,1723891944460,-500.0,0.00027699,2]
[335158346,1723891944518,-157.894736,0.00027884,2]
[335158347,1723891944572,-604.59,0.00027945,2]
[335158348,1723891944627,-611.55,0.00027945,2]
[335158349,1723891944681,-500.0,0.00027945,2]
[335158350,1723891944736,-1042.81,0.00027945,2]
[335158351,1723891944795,-552.4370245,0.00027945,2]
[335158352,1723891944851,-638.63,0.00027945,2]
[335158353,1723891944913,-571.46,0.00027945,2]
[335158354,1723891944969,-578.52,0.00027945,2]
[335158355,1723891945024,-500.0,0.00027945,2]
[335158356,1723891945079,-583.41,0.00027945,2]
[335158357,1723891945134,-253.74578824,0.00027945,2]
[335158358,1723891945190,-516.23160208,0.00027945,2]
[335158359,1723891945243,-707.23,0.00027945,2]
[335158360,1723891945303,-773.58,0.00027945,2]
[335158361,1723891945355,-784.78,0.00027945,2]
[335158362,1723891945414,-584.85,0.00027945,2]
[335158363,1723891945485,-749.17,0.00027945,2]
[335158364,1723891945540,-785.89,0.00027945,2]
[335158365,1723891945594,-763.85,0.00027945,2]
[335158366,1723891945649,-2188.21,0.00027945,2]
[335158367,1723891945700,-500.0,0.00027945,2]
[335158368,1723891945754,-799.81,0.00027945,2]
[335158369,1723891945810,-740.01,0.00027945,2]
[335158370,1723891945865,-604.78040418,0.00028219,2]
[335158371,1723891945920,-611.63190177,0.00028219,2]
[335158372,1723891945975,-230.61046238,0.00028219,2]
[335158373,1723891946028,-1043.01445149,0.00028219,2]
[335158374,1723891946094,-638.77498424,0.00028219,2]
[335158375,1723891946149,-571.51553995,0.00028219,2]
[335158376,1723891946211,-578.67394775,0.00028219,2]
[335158377,1723891946267,-478.3641791,0.00028219,2]
[335158378,1723891946322,-583.63158681,0.00028219,2]
[335158379,1723891946382,-707.36815831,0.00028219,2]
[335158380,1723891946443,-773.69044876,0.00028219,2]
[335158381,1723891946615,-784.95834603,0.00028219,2]
[335158382,1723891946675,-585.08214256,0.00028219,2]
[335158383,1723891946740,-749.26980439,0.00028219,2]
[335158384,1723891946795,-785.96865611,0.00028219,2]
[335158385,1723891946850,-763.90172552,0.00028219,2]
[335158386,1723891946907,-2188.33561065,0.00028219,2]
[335158387,1723891946962,-489.97770682,0.00028219,2]
[335158388,1723891947021,-799.92426617,0.00028219,2]
[335158389,1723891947076,-740.15746491,0.00028219,2]
[335158390,1723891947138,-850.51877308,0.00028226,2]
[335158391,1723891947197,-189.9631639,0.00028226,2]
[335158392,1723891947257,-16314.05071217,0.00028226,2]
[335158393,1723891947313,-16314.05071217,0.00028226,2]
[335158394,1723891947369,-162.31029078,0.00028226,2]
[335158395,1723891947424,-500.0,0.00028699,2]
[335158396,1723891947483,-2607.00479237,0.00029,2]
[335158397,1723891947536,-500.0,0.00029699,2]
[335158398,1723891947591,-160.0,0.00029755,10]
[335158399,1723891947649,-160.0,0.00029755,10]
[335158400,1723891947700,-13192.711822,0.0003,15]
[335158401,1723891947753,-1014.198538,0.0003,2]
[335158402,1723891947810,-243.0,0.0003,2]
[335158403,1723891947865,-500.0,0.00030699,2]
[335158404,1723891947918,-202.43,0.000308,14]
[335158405,1723891947971,-727.565237,0.00030939,2]
[335158406,1723891948023,-500.0,0.00031699,2]
[335158407,1723891948083,-500.0,0.00032699,2]
[335158408,1723891948136,-151.0,0.00032876,7]
[335158409,1723891948197,-243.0,0.00033,2]
[335158410,1723891948250,-243.0,0.00033,2]
[335158411,1723891948303,-500.0,0.00033699,2]
[335158412,1723891948357,-207.4743021,0.00033988,2]
[335158413,1723891948411,-202.43,0.00034,14]
[335158414,1723891948464,-500.0,0.00034699,2]
[335158415,1723891948523,-157.894736,0.00034703,2]
[335158416,1723891948576,-259.44255929,0.00035,4]
[335158417,1723891948629,-154.87468361,0.00035,15]
[335158418,1723891948682,-1000.0,0.00035,7]
[335158419,1723891948734,-154.83584184,0.00035,4]
[335158420,1723891948784,-506.0,0.000354,2]
[335158421,1723891948842,-3316.53,0.00035616,2]
[335158422,1723891948895,-3316.53,0.00035616,2]
[335158423,1723891948951,-3316.53,0.00035616,2]
[335158424,1723891949009,-3316.53,0.00035616,2]
[335158425,1723891949064,-3316.53,0.00035616,2]
[335158426,1723891949119,-3316.53,0.00035616,2]
[335158427,1723891949176,-3316.53,0.00035616,2]
[335158428,1723891949236,-3316.53,0.00035616,2]
[335158429,1723891949291,-3316.53,0.00035616,2]
[335158430,1723891949348,-3316.53,0.00035616,2]
[335158431,1723891949407,-3316.53,0.00035616,2]
[335158432,1723891949465,-3316.53,0.00035616,2]
[335158433,1723891949525,-3316.53,0.00035616,2]
[335158434,1723891949582,-3316.53,0.00035616,2]
[335158435,1723891949640,-3316.53,0.00035616,2]
[335158436,1723891949697,-3316.53,0.00035616,2]
[335158437,1723891949752,-3316.53,0.00035616,2]
[335158438,1723891949807,-3316.53,0.00035616,2]
[335158439,1723891949861,-3316.53,0.00035616,2]
[335158440,1723891949916,-3316.53,0.00035616,2]
[335158441,1723891949969,-3316.53,0.00035616,2]
[335158442,1723891950022,-3316.53,0.00035616,2]
[335158443,1723891950074,-3316.53,0.00035616,2]
[335158444,1723891950127,-3316.63194198,0.00035616,2]
[335158445,1723891950178,-500.0,0.00035699,2]
[335158446,1723891950231,-243.0,0.00036,2]
[335158447,1723891950284,-243.0,0.00036,2]
[335158448,1723891950335,-243.0,0.00036,2]
[335158449,1723891950386,-169.948311,0.00036301,2]
[335158450,1723891950437,-501.25955814,0.000365,3]
[335158451,1723891950488,-500.0,0.00036699,2]
[335158452,1723891950539,-500.0,0.00037699,2]
[335158453,1723891950590,-202.43,0.00038,14]
[335158454,1723891950640,-500.0,0.00038699,2]
[335158455,1723891950690,-182.5,0.000388,14]
[335158456,1723891950742,-243.0,0.00039,2]
[335158457,1723891950793,-243.0,0.00039,2]
[335158458,1723891950845,-243.0,0.00039,2]
[335158459,1723891950896,-505.0,0.000399,2]
[335158460,1723891950948,-500.0,0.0004,2]
[335158461,1723891951000,-500.0,0.00041095,2]
[335158462,1723891951054,-157.894736,0.00041522,2]
[335158463,1723891951107,-243.0,0.00042,2]
[335158464,1723891951161,-243.0,0.00042,2]
[335158465,1723891951214,-243.0,0.00042,2]
[335158466,1723891951268,-202.43,0.00044,30]
[335158467,1723891951321,-243.0,0.00045,2]
[335158468,1723891951377,-243.0,0.00045,2]
[335158469,1723891951561,-1001.014073,0.000458,49]
[335158470,1723891951616,-4672.25162875,0.00046603,14]
[335158471,1723891951672,-154.0,0.00047,90]
[335158472,1723891951724,-1092.528,0.00047788,2]
[335158473,1723891951777,-243.0,0.00048,2]
[335158474,1723891951831,-157.894736,0.00048341,2]
[335158475,1723891951890,-154.0,0.00048904,90]
[335158476,1723891951942,-4345.68338588,0.0005,60]
[335158477,1723891951994,-182.78887936,0.0005,4]
[335158478,1723891952045,-202.43,0.000505,30]
[335158479,1723891952097,-156.0,0.00051349,120]
[335158480,1723891952154,-2225.55457296,0.00052054,120]
[335158481,1723891952209,-169.948311,0.00053425,2]
[335158482,1723891952265,-500.0,0.000535,41]
[335158483,1723891952317,-511.0,0.000545,44]
[335158484,1723891952370,-500.0,0.00054794,120]
[335158485,1723891952424,-187.5,0.0005516,2]
[335158486,1723891952479,-157.894736,0.0005516,2]
[335158487,1723891952531,-153.0,0.00055923,60]
[335158488,1723891952583,-306.0,0.00055923,2]
[335158489,1723891952634,-153.0,0.00055923,60]
[335158490,1723891952694,-153.0,0.00055923,30]
[335158491,1723891952747,-153.0,0.00055923,60]
[335158492,1723891952799,-150.0,0.00056,120]
[335158493,1723891952853,-188.48,0.00057,120]
[335158494,1723891952907,-500.0,0.00057534,120]
[335158495,1723891952961,-1336.38787278,0.0005806,4]
[335158496,1723891953015,-202.43,0.00059,30]
[335158497,1723891953074,-248.22,0.00059557,30]
[335158498,1723891953130,-151.31843755,0.0005988,18]
[335158499,1723891953219,400.53502463,0.00028226,2]
[335158500,1723891953285,280.81356691,0.00025479,2]
[335158501,1723891953362,500.0,0.00021917,2]
[335158502,1723891953463,500.0,0.00022191,2]
[335158503,1723891953533,500.0,0.00022465,2]
[335158504,1723891953598,500.0,0.00022739,2]
[335158505,1723891953667,338.88412573,0.00023013,2]
[335158506,1723891953755,204.77,0.00027112,3]
[335158507,1723891953817,21919.07005474,0.00032875,4]
[335158508,1723891953888,500.0,0.00023286,2]
[335158509,1723891953948,207.8143395,0.00027397,2]
[335158510,1723891954017,254.2245491,0.00023286,2]
[335158511,1723891954103,500.0,0.00021917,2]
[335158512,1723891954165,500.0,0.00022191,2]
[335158513,1723891954225,500.0,0.00022465,2]
[335158514,1723891954286,500.0,0.00022739,2]
[335158515,1723891954347,500.0,0.00023013,2]
[335158516,1723891954417,500.0,0.00023287,2]
[335158517,1723891954482,500.0,0.00023561,2]
[335158518,1723891954551,500.0,0.00023835,2]
[335158519,1723891954617,500.0,0.00024109,2]
[335158520,1723891954682,492.61318173,0.00024383,2]
[335158521,1723891954786,500.0,0.00023286,2]
[335158522,1723891954855,500.0,0.00023286,2]
[335158523,1723891954923,500.0,0.00023286,2]
[335158524,1723891954992,500.0,0.00023286,2]
[335158525,1723891955054,170.64,0.00027112,3]
[335158526,1723891955116,500.0,0.00023286,2]
[335158527,1723891955180,500.0,0.00023286,2]
[335158528,1723891955240,500.0,0.00023286,2]
[335158529,1723891955302,500.0,0.00023286,2]
[335158530,1723891955367,500.0,0.00023286,2]
[335158531,1723891955433,500.0,0.00023286,2]
[335158532,1723891955497,511.69295964,0.00023286,2]
[335158533,1723891955585,169.8012043,0.00032875,4]
[335158534,1723891955876,500.0,0.00021917,2]
[335158535,1723891955935,500.0,0.00022191,2]
[335158536,1723891955996,500.0,0.00022465,2]
[335158537,1723891956058,500.0,0.00022739,2]
[335158538,1723891956123,500.0,0.00023013,2]
[335158539,1723891956184,500.0,0.00023287,2]
[335158540,1723891956242,500.0,0.00023561,2]
[335158541,1723891956303,500.0,0.00023835,2]
[335158542,1723891956364,500.0,0.00024109,2]
[335158543,1723891956421,166.32,0.00024383,2]
[335158544,1723891956480,853.22,0.00027935,3]
[335158545,1723891956547,636.83,0.00021917,2]
[335158546,1723891956605,1500.0,0.00056858,120]
[335158547,1723891956668,636.83,0.00022191,2]
[335158548,1723891956731,636.83,0.00022465,2]
[335158549,1723891956787,2397.58597316,0.00032875,4]
[335158550,1723891956852,500.0,0.00021917,2]
[335158551,1723891956908,636.83,0.00022739,2]
[335158552,1723891956970,500.0,0.00022191,2]
[335158553,1723891957027,636.83,0.00023013,2]
[335158554,1723891957085,500.0,0.00022465,2]
[335158555,1723891957142,636.83,0.00023287,2]
[335158556,1723891957205,500.0,0.00022739,2]
[335158557,1723891957261,636.83,0.00023561,2]
[335158558,1723891957318,500.0,0.00023013,2]
[335158559,1723891957380,636.83,0.00023835,2]
[335158560,1723891957445,636.83,0.00024109,2]
[335158561,1723891957516,500.0,0.00023287,2]
[335158562,1723891957584,636.83,0.00024383,2]
[335158563,1723891957650,500.0,0.00023561,2]
[335158564,1723891957721,636.83,0.00024657,2]
[335158565,1723891957789,500.0,0.00023835,2]
[335158566,1723891957849,636.83,0.00024931,2]
[335158567,1723891957904,500.0,0.00024109,2]
[335158568,1723891957964,13892.4454919,0.00032875,4]
[335158569,1723891958070,636.83,0.00025205,2]
[335158570,1723891958126,500.0,0.00024383,2]
[335158571,1723891958193,636.83,0.00025479,2]
[335158572,1723891958254,500.0,0.00024657,2]
[335158573,1723891958316,636.83,0.00025753,2]
[335158574,1723891958378,500.0,0.00024931,2]
[335158575,1723891958436,636.83,0.00026027,2]
[335158576,1723891958498,500.0,0.00025205,2]
[335158577,1723891958564,636.83,0.00026301,2]
[335158578,1723891958623,500.0,0.00025479,2]
[335158579,1723891958681,636.83,0.00026575,2]
[335158580,1723891958739,587.45,0.00025753,2]
[335158581,1723891958808,636.83,0.00026849,2]
[335158582,1723891958874,660.27494609,0.0006,2]
[335158583,1723891958942,636.83,0.00027123,2]
[335158584,1723891959007,636.83,0.00027397,2]
[335158585,1723891959067,246.37625287,0.00026999,2]
[335158586,1723891959134,636.83,0.00027671,2]
[335158587,1723891959199,636.83,0.00027945,2]
[335158588,1723891959267,637.05610956,0.00028219,2]
[335158589,1723891959337,696.18325317,0.00032875,4]
[335158590,1723891959396,3200.0,0.00045474,30]
[335158591,1723891959467,230.29,0.0002999,3]
[335158592,1723891959657,500.0,0.00055129,120]
[335158593,1723891959726,460.58,0.0003136,3]
[335158594,1723891959876,500.0,0.00021917,2]
[335158595,1723891959941,500.0,0.00022191,2]
[335158596,1723891960016,351.93,0.00022465,2]
[335158597,1723891960079,503.44,0.00021917,2]
[335158598,1723891960150,503.44,0.00022191,2]
[335158599,1723891960393,503.44,0.00022465,2]
[335158600,1723891960464,503.44,0.00022739,2]
[335158601,1723891960530,503.44,0.00023013,2]
[335158602,1723891960602,503.44,0.00023287,2]
[335158603,1723891960661,503.44,0.00023561,2]
[335158604,1723891960741,503.44,0.00023835,2]
[335158605,1723891960819,503.44,0.00024109,2]
[335158606,1723891960897,503.44,0.00024383,2]
[335158607,1723891960958,503.44,0.00024657,2]
[335158608,1723891961034,503.44,0.00024931,2]
[335158609,1723891961122,503.44,0.00025205,2]
[335158610,1723891961196,503.44,0.00025479,2]
[335158611,1723891961266,503.44,0.00025753,2]
[335158612,1723891961333,503.44,0.00026027,2]
[335158613,1723891961407,503.44,0.00026301,2]
[335158614,1723891961477,503.44,0.00026575,2]
[335158615,1723891961556,503.44,0.00026849,2]
[335158616,1723891961619,503.44,0.00027123,2]
[335158617,1723891961691,503.44,0.00027397,2]
[335158618,1723891961759,503.44,0.00027671,2]
[335158619,1723891961829,503.44,0.00027945,2]
[335158620,1723891961890,503.60525481,0.00028219,2]
[335158621,1723891961965,154.71377951,0.00032875,4]
[335158622,1723891962040,500.0,0.00021917,2]
[335158623,1723891962102,500.0,0.00022191,2]
[335158624,1723891962169,500.0,0.00022465,2]
[335158625,1723891962232,500.0,0.00022739,2]
[335158626,1723891962301,527.95718437,0.00032874,2]
[335158627,1723891962381,500.0,0.00023013,2]
[335158628,1723891962456,500.0,0.00023287,2]
[335158629,1723891962523,391.98160104,0.00032875,4]
[335158630,1723891962581,618.53,0.00023561,2]
[335158631,1723891962651,500.0,0.00032874,2]
[335158632,1723891962712,500.0,0.00032874,2]
[335158633,1723891962778,500.0,0.00032874,2]
[335158634,1723891998111,187.5,0.00014247,2]
[335158635,1723892038842,16314.05071217,0.00014247,2]
[335158636,1723892072198,154.71377951,0.00014519,2]
[335158637,1723892144396,16314.05071217,0.00014519,2]
[335158638,1723892159816,16314.05071217,0.00014519,2]
[335158641,1723892264273,16314.05071217,0.00014519,2]
[335158642,1723892308030,2281.22061085,0.00014519,3]
[335158643,1723892352337,16314.05071217,0.00014519,2]
[335158645,1723892461310,16314.05071217,0.00014519,2]
[335158648,1723892520138,157.894736,0.00014247,2]
[335158649,1723892591305,6849.65863814,0.00014247,2]
[335158650,1723892660072,2694.20190589,0.00014519,2]
[335158653,1723892732162,-290.48852021,0.00017598,2]
[335158654,1723892732186,-1718.76321764,0.00017898,2]
[335158655,1723892732211,-199.0,0.00023,2]
[335158656,1723892732237,-1434.72744141,0.00023121,2]
[335158659,1723892825177,-237.94619387,0.00017598,2]
[335158660,1723892825201,-412.11650436,0.00023121,7]
[335158662,1723892838192,-394.75142691,0.00023121,7]
[335158665,1723892852122,-480.9283273,0.00023121,7]
[335158672,1723892939652,258.90723421,0.00014519,2]
[335158675,1723892971061,245.0,0.00014519,3]
[335158676,1723892971091,186.70622031,0.00014519,3]
[335158677,1723892971115,267.90589506,0.00014519,3]
[335158678,1723892971140,245.0,0.00014519,3]
[335158679,1723892971165,1336.60849548,0.00014519,3]
[335158680,1723892977143,239.34774772,0.00014519,2]
[335158681,1723892977168,48.75993282,0.00014519,2]
[335158682,1723892988037,273.37336231,9.9e-05,2]
[335158684,1723892997239,273.37336231,9.9e-05,2]
[335158685,1723892998187,187.5,0.00014247,2]
[335158702,1723893014650,178.68047661,0.00012,2]
[335158703,1723893017308,-6108.0502337,0.00023121,7]
[335158704,1723893017365,-8074.3683291,0.00023209,2]
[335158705,1723893017423,-23181.5379196,0.00023415,2]
[335158706,1723893017481,-165.740469,0.00023895,2]
[335158707,1723893017537,-3124.6821242,0.00023908,2]
[335158708,1723893017595,-165.740469,0.00024008,2]
[335158709,1723893017653,-165.740469,0.00024121,2]
[335158710,1723893017713,-199.0,0.00024164,2]
[335158711,1723893017771,-165.740469,0.00024235,2]
[335158712,1723893017829,-165.740469,0.00024348,2]
[335158713,1723893017888,-165.740469,0.00024461,2]
[335158714,1723893017950,-165.740469,0.00024574,2]
[335158715,1723893018018,-165.740469,0.00024687,2]
[335158716,1723893018076,-24900.0,0.00024688,2]
[335158717,1723893018134,-165.740469,0.00024801,2]
[335158718,1723893018192,-165.740469,0.00024914,2]
[335158719,1723893018248,-504.09272878,0.00025,2]
[335158720,1723893018309,-165.740469,0.00025027,2]
[335158721,1723893018367,-165.740469,0.0002514,2]
[335158722,1723893018423,-157.894736,0.00025405,2]
[335158723,1723893018478,-164.9960547,0.00028493,2]
[335158724,1723893018534,-2607.00479237,0.00029,2]
[335158725,1723893018592,-516.0,0.00032,2]
[335158726,1723893018646,-516.0,0.00032243,2]
[335158727,1723893018702,-200.0,0.0003304,5]
[335158728,1723893018758,-516.0,0.00033568,2]
[335158729,1723893018814,-216.20213274,0.00035,4]
[335158730,1723893018869,-519.0,0.00035246,2]
[335158731,1723893018926,-157.894736,0.00036563,2]
[335158732,1723893018982,-271.45995891,0.00037,2]
[335158733,1723893019039,-516.0,0.00037596,2]
[335158734,1723893019096,-183.5,0.000388,14]
[335158735,1723893019153,-516.0,0.00039946,14]
[335158736,1723893019206,-516.0,0.00040281,14]
[335158738,1723893019263,-179.6046955,0.00041096,2]
[335158739,1723893019318,-516.0,0.00042295,90]
[335158740,1723893019371,-4100.0,0.00045935,30]
[335158741,1723893019426,-165.0,0.00047,90]
[335158742,1723893019482,-154.0,0.00047,90]
[335158743,1723893019538,-157.894736,0.00047721,2]
[335158744,1723893019594,-4100.0,0.00047886,30]
[335158745,1723893019649,-182.5,0.000493,29]
[335158746,1723893019710,-165.0,0.00049477,120]
[335158747,1723893019768,-500.0,0.00049591,30]
[335158748,1723893019827,-369.57002905,0.00049999,31]
[335158749,1723893019890,-500.0,0.00049999,120]
[335158750,1723893019949,-408.18507175,0.00049999,120]
[335158751,1723893020014,-500.0,0.00049999,120]
[335158752,1723893020076,-500.0,0.00049999,120]
[335158753,1723893020148,-500.0,0.00049999,120]
[335158754,1723893020211,-500.0,0.00049999,120]
[335158755,1723893020269,-500.0,0.00049999,120]
[335158756,1723893020326,-4345.68338588,0.0005,60]
[335158757,1723893020385,-194.09894855,0.00054794,120]
[335158758,1723893020633,-500.0,0.00054794,120]
[335158759,1723893020690,-500.0,0.00054794,120]
[335158760,1723893020747,-500.0,0.00054794,120]
[335158761,1723893020802,-532.86,0.00054794,120]
[335158762,1723893020855,-513.75771718,0.00054794,2]
[335158763,1723893020907,-500.0,0.00054794,120]
[335158764,1723893020959,-500.0,0.00054794,120]
[335158765,1723893021015,-500.0,0.00054794,30]
[335158766,1723893021080,-500.0,0.00054794,120]
[335158767,1723893021133,-500.0,0.00054794,120]
[335158768,1723893021184,-500.0,0.00054794,120]
[335158769,1723893021235,-500.0,0.00054794,120]
[335158770,1723893021287,-500.0,0.00054794,120]
[335158771,1723893021336,-500.0,0.00054794,120]
[335158772,1723893021392,-497.7047255,0.00054794,120]
[335158773,1723893021444,-500.0,0.00054794,120]
[335158774,1723893021500,-288.21888033,0.00054794,120]
[335158775,1723893021551,-500.0,0.00054794,120]
[335158776,1723893021600,-500.0,0.00054794,120]
[335158777,1723893021657,-500.0,0.00054794,120]
[335158778,1723893021707,-500.0,0.00054794,120]
[335158779,1723893021757,-500.0,0.00054794,7]
[335158780,1723893021807,-500.0,0.00054794,120]
[335158781,1723893021857,-561.74,0.00054794,120]
[335158782,1723893021906,-500.0,0.00054794,120]
[335158783,1723893021957,-500.0,0.00054794,120]
[335158784,1723893022013,-500.0,0.00054794,120]
[335158785,1723893022065,-500.0,0.00054794,120]
[335158786,1723893022116,-500.0,0.00054794,120]
[335158787,1723893022167,-763.16,0.00054794,7]
[335158788,1723893022219,-522.67,0.00054794,60]
[335158789,1723893022272,-500.0,0.00054794,120]
[335158790,1723893022325,-650.97,0.00054794,120]
[335158791,1723893022377,-500.0,0.00054794,120]
[335158792,1723893022428,-500.0,0.00054794,120]
[335158793,1723893022480,-228.49623559,0.00054794,120]
[335158794,1723893022532,-500.0,0.00054794,120]
[335158795,1723893022583,-500.0,0.00054794,120]
[335158796,1723893022634,-257.83327742,0.00054794,120]
[335158797,1723893022684,-500.0,0.00054794,120]
[335158798,1723893022735,-200.0,0.00054794,7]
[335158799,1723893022784,-500.0,0.00054794,120]
[335158800,1723893022835,-500.0,0.00054794,120]
[335158801,1723893022886,-500.0,0.00054794,120]
[335158802,1723893022935,-500.0,0.00054794,120]
[335158803,1723893022986,-500.0,0.00054794,120]
[335158804,1723893023037,-500.0,0.00054794,120]
[335158805,1723893023088,-500.0,0.00054794,120]
[335158806,1723893023140,-500.0,0.00054794,120]
[335158807,1723893023191,-500.0,0.00054794,120]
[335158808,1723893023242,-500.0,0.00054794,120]
[335158809,1723893023294,-401.71,0.00054794,120]
[335158810,1723893023346,-500.0,0.00054794,120]
[335158811,1723893023403,-500.0,0.00054794,120]
[335158812,1723893023457,-500.0,0.00054794,120]
[335158813,1723893023509,-500.0,0.00054794,120]
[335158814,1723893023566,-500.0,0.00054794,120]
[335158815,1723893023618,-500.0,0.00054794,120]
[335158816,1723893023671,-500.0,0.00054794,120]
[335158817,1723893023728,-500.0,0.00054794,120]
[335158818,1723893023785,-500.0,0.00054794,120]
[335158819,1723893023840,-504.32589964,0.00054794,120]
[335158820,1723893023901,-500.0,0.00054794,120]
[335158821,1723893023957,-500.0,0.00054794,120]
[335158822,1723893024015,-541.25,0.00054794,120]
[335158823,1723893024073,-500.0,0.00054794,120]
[335158824,1723893024127,-500.0,0.00054794,21]
[335158825,1723893024181,-500.0,0.00054794,120]
[335158826,1723893024237,-500.0,0.00054794,120]
[335158827,1723893024291,-500.0,0.00054794,120]
[335158828,1723893024346,-500.0,0.00054794,120]
[335158829,1723893024398,-500.0,0.00054794,120]
[335158830,1723893024450,-642.97079159,0.00054794,120]
[335158831,1723893024501,-500.0,0.00054794,120]
[335158832,1723893024554,-500.0,0.00054794,120]
[335158833,1723893024607,-500.0,0.00054794,120]
[335158834,1723893024660,-500.0,0.00054794,120]
[335158835,1723893024719,-500.0,0.00054794,120]
[335158836,1723893024772,-496.04369566,0.00054794,120]
[335158837,1723893024824,-500.0,0.00054794,120]
[335158838,1723893024876,-500.0,0.00054794,120]
[335158839,1723893024928,-500.0,0.00054794,120]
[335158840,1723893024983,-500.0,0.00054794,120]
[335158841,1723893025034,-500.0,0.00054794,120]
[335158842,1723893025086,-500.0,0.00054794,120]
[335158843,1723893025136,-510.89,0.00054794,120]
[335158844,1723893025186,-500.0,0.00054794,120]
[335158845,1723893025238,-500.0,0.00054794,120]
[335158846,1723893025296,-200.0,0.00055808,4]
[335158847,1723893025350,-400.0,0.00057178,4]
[335158848,1723893025401,-500.0,0.00057381,120]
[335158849,1723893025460,-500.0,0.00057534,120]
[335158850,1723893025517,-157.894736,0.00058879,2]
[335158851,1723893025572,-600.0,0.00059181,4]
[335158852,1723893025632,-2000.0,0.000592,120]
[335158853,1723893025685,-2000.0,0.000592,120]
[335158854,1723893025740,-500.0,0.00060273,120]
[335158855,1723893025794,-3644.13040127,0.00060315,2]
[335158856,1723893025850,-600.0,0.00061522,4]
[335158857,1723893025904,-150.0,0.00062,120]
[335158858,1723893025957,-3200.0,0.00062272,120]
[335158859,1723893026009,-166.0,0.00062341,120]
[335158860,1723893026063,-150.0,0.00063,120]
[335158861,1723893026118,-500.0,0.00063013,120]
[335158862,1723893026172,-200.0,0.00064,120]
[335158863,1723893026225,-500.0,0.00065753,120]
[335158864,1723893026282,-152.0,0.00065753,120]
[335158865,1723893026335,-152.0,0.00065753,120]
[335158866,1723893026391,-500.0,0.00067032,120]
[335158867,1723893026449,-4100.0,0.00067798,120]
[335158868,1723893026504,-500.0,0.00068493,120]
[335158869,1723893026559,-1000.0,0.00069,30]
[335158870,1723893026613,-3000.0,0.00069,120]
[335158871,1723893026667,-3000.0,0.0006901,120]
[335158872,1723893026723,-4945.103987,0.0006902,120]
[335158873,1723893026779,-2000.0,0.000692,120]
[335158874,1723893026834,-157.894736,0.00070037,120]
[335158875,1723893026889,-169.948311,0.00070548,120]
[335158876,1723893026943,-500.0,0.00071232,120]
[335158877,1723893027001,-500.0,0.00071499,120]
[335158878,1723893027056,-2000.0,0.000725,120]
[335158879,1723893027111,-152.0,0.0007301,120]
[335158880,1723893027166,-152.0,0.0007301,120]
[335158881,1723893027223,-500.0,0.00073972,120]
[335158882,1723893027280,-500.0,0.00075,120]